fUSD/lending_fUSD_20250417
["ID","MTS","AMOUNT","RATE_DAILY","PERIOD"]
[358236602,1744863051170,-1951.42,0.00052054,120]
[358236603,1744863051179,-500.0,0.00052054,120]
[358236604,1744863051188,-505.27,0.00052054,120]
[358236605,1744863051197,-1076.69,0.00052054,120]
[358236606,1744863051206,-500.0,0.00052054,120]
[358236607,1744863051216,-500.0,0.00052054,120]
[358236608,1744863051225,-500.0,0.00052054,120]
[358236609,1744863051234,-531.21188002,0.00052054,120]
[358236610,1744863051244,-661.8,0.00052054,120]
[358236611,1744863051253,-1310.44,0.00052054,120]
[358236612,1744863051263,-1000.0,0.00052054,120]
[358236613,1744863051272,-1317.176512,0.00052054,120]
[358236614,1744863051281,-512.3159886,0.00052054,120]
[358236615,1744863051290,-1317.176512,0.00052054,120]
[358236616,1744863051299,-1096.31,0.00052054,120]
[358236617,1744863051308,-1317.176512,0.00052054,120]
[358236618,1744863051316,-1355.32,0.00052054,120]
[358236619,1744863051324,-1317.176512,0.00052054,120]
[358236620,1744863051334,-1317.176512,0.00052054,120]
[358236621,1744863051343,-1317.176512,0.00052054,120]
[358236622,1744863051352,-500.0,0.00052054,120]
[358236623,1744863051362,-500.0,0.00052054,120]
[358236624,1744863051371,-500.0,0.00052054,120]
[358236625,1744863051380,-500.0,0.00052054,120]
[358236626,1744863051390,-1296.98,0.00052054,120]
[358236627,1744863051399,-561.67699844,0.00052054,120]
[358236628,1744863051408,-860.712396,0.00052054,120]
[358236629,1744863051417,-860.712396,0.00052054,120]
[358236630,1744863051427,-500.0,0.00052054,120]
[358236631,1744863051437,-860.712396,0.00052054,120]
[358236632,1744863051446,-860.712396,0.00052054,120]
[358236633,1744863051456,-500.0,0.00052054,120]
[358236634,1744863051465,-860.712396,0.00052054,120]
[358236635,1744863051475,-500.0,0.00052054,120]
[358236636,1744863051484,-860.712396,0.00052054,120]
[358236637,1744863051493,-860.712396,0.00052054,120]
[358236638,1744863051504,-500.0,0.00052054,120]
[358236639,1744863051513,-500.0,0.00052054,120]
[358236640,1744863051523,-860.712396,0.00052054,120]
[358236641,1744863051532,-500.0,0.00052054,120]
[358236642,1744863051541,-500.0,0.00052054,120]
[358236643,1744863051550,-1254.93,0.00052054,120]
[358236644,1744863051559,-691.77,0.00052054,120]
[358236645,1744863051569,-151.0,0.00052054,120]
[358236646,1744863051578,-151.0,0.00052054,120]
[358236647,1744863051587,-151.0,0.00052054,120]
[358236648,1744863051596,-1387.74,0.00052054,120]
[358236649,1744863051606,-1131.82,0.00052054,120]
[358236650,1744863051615,-151.0,0.00052054,120]
[358236651,1744863051625,-1736.85,0.00052054,120]
[358236652,1744863051634,-544.15,0.00052054,120]
[358236653,1744863051643,-500.0,0.00052054,120]
[358236654,1744863051652,-500.0,0.00052054,120]
[358236655,1744863051661,-556.71,0.00052054,120]
[358236656,1744863051671,-151.0,0.00052054,120]
[358236657,1744863051680,-151.0,0.00052054,120]
[358236658,1744863051691,-181.63878,0.00052054,120]
[358236659,1744863051700,-683.92,0.00052054,120]
[358236660,1744863051709,-500.0,0.00052054,120]
[358236661,1744863051719,-500.0,0.00052054,120]
[358236662,1744863051728,-567.54608536,0.00052054,120]
[358236663,1744863051737,-500.0,0.00052054,120]
[358236664,1744863051747,-500.0,0.00052054,120]
[358236665,1744863051756,-591.10079735,0.00052054,120]
[358236666,1744863051765,-151.0,0.00052054,120]
[358236667,1744863051774,-614.84,0.00052054,120]
[358236668,1744863051783,-151.0,0.00052054,120]
[358236669,1744863051792,-151.0,0.00052054,120]
[358236670,1744863051801,-500.0,0.00052054,120]
[358236671,1744863051810,-151.0,0.00052054,120]
[358236672,1744863051819,-1120.98,0.00052054,120]
[358236673,1744863051829,-748.79,0.00052054,120]
[358236674,1744863051838,-500.0,0.00052054,120]
[358236675,1744863051847,-2313.4,0.00052054,120]
[358236676,1744863051856,-160.667246,0.00052054,120]
[358236677,1744863051865,-1709.76,0.00052054,120]
[358236678,1744863051874,-160.667246,0.00052054,120]
[358236679,1744863051884,-500.0,0.00052054,120]
[358236680,1744863051893,-160.667246,0.00052054,120]
[358236681,1744863051902,-500.0,0.00052054,120]
[358236682,1744863051911,-500.0,0.00052054,120]
[358236683,1744863051921,-160.667246,0.00052054,120]
[358236684,1744863051930,-1766.31,0.00052054,120]
[358236685,1744863051940,-160.667246,0.00052054,120]
[358236686,1744863051949,-160.667246,0.00052054,120]
[358236687,1744863051958,-521.5585476,0.00052054,120]
[358236688,1744863051967,-2064.5,0.00052054,120]
[358236689,1744863051980,-732.67,0.00052054,120]
[358236690,1744863051989,-195.426473,0.00052054,120]
[358236691,1744863051999,-195.426473,0.00052054,120]
[358236692,1744863052008,-195.426473,0.00052054,120]
[358236693,1744863052017,-500.0,0.00052054,120]
[358236694,1744863052026,-195.426473,0.00052054,120]
[358236695,1744863052035,-1597.55,0.00052054,120]
[358236696,1744863052044,-500.0,0.00052054,120]
[358236697,1744863052055,-525.4427463,0.00052054,120]
[358236698,1744863052065,-634.04,0.00052054,120]
[358236699,1744863052075,-195.426473,0.00052054,120]
[358236700,1744863052084,-195.426473,0.00052054,120]
[358236701,1744863052093,-195.426473,0.00052054,120]
[358236702,1744863052103,-195.426473,0.00052054,120]
[358236703,1744863052112,-500.0,0.00052054,120]
[358236704,1744863052121,-500.0,0.00052054,120]
[358236705,1744863052131,-1871.29,0.00052054,120]
[358236706,1744863052140,-392.96668532,0.00052054,120]
[358236707,1744863052149,-526.57,0.00052054,120]
[358236708,1744863052158,-814.05,0.00052054,120]
[358236709,1744863052167,-500.0,0.00052054,120]
[358236710,1744863052177,-525.94114334,0.00052054,120]
[358236711,1744863052186,-500.0,0.00052054,120]
[358236712,1744863052196,-500.0,0.00052054,120]
[358236713,1744863052205,-519.26305669,0.00052054,120]
[358236714,1744863052214,-500.0,0.00052054,120]
[358236715,1744863052224,-151.0,0.00052054,120]
[358236716,1744863052234,-151.0,0.00052054,120]
[358236717,1744863052243,-151.0,0.00052054,120]
[358236718,1744863052252,-500.0,0.00052054,120]
[358236719,1744863052261,-151.0,0.00052054,120]
[358236720,1744863052271,-1436.43,0.00052054,120]
[358236721,1744863052280,-500.0,0.00052054,120]
[358236722,1744863052289,-936.83,0.00052054,120]
[358236723,1744863052298,-500.0,0.00052054,120]
[358236724,1744863052308,-500.0,0.00052054,120]
[358236725,1744863052317,-151.0,0.00052054,120]
[358236726,1744863052327,-154.113534,0.00052054,120]
[358236727,1744863052336,-500.0,0.00052054,120]
[358236728,1744863052346,-500.0,0.00052054,120]
[358236729,1744863052355,-500.0,0.00052054,120]
[358236730,1744863052364,-500.0,0.00052054,120]
[358236731,1744863052373,-500.0,0.00052054,120]
[358236732,1744863052382,-1428.75,0.00052054,120]
[358236733,1744863052392,-500.0,0.00052054,120]
[358236734,1744863052401,-500.0,0.00052054,120]
[358236735,1744863052411,-546.43183145,0.00052054,120]
[358236736,1744863052420,-500.0,0.00052054,120]
[358236737,1744863052430,-500.0,0.00052054,120]
[358236738,1744863052440,-500.0,0.00052054,120]
[358236739,1744863052449,-500.0,0.00052054,120]
[358236740,1744863052459,-500.0,0.00052054,120]
[358236741,1744863052468,-500.0,0.00052054,120]
[358236742,1744863052477,-500.0,0.00052054,120]
[358236743,1744863052487,-158.95657,0.00052054,120]
[358236744,1744863052496,-500.0,0.00052054,120]
[358236745,1744863052505,-500.0,0.00052054,120]
[358236746,1744863052515,-500.0,0.00052054,120]
[358236747,1744863052524,-500.0,0.00052054,120]
[358236748,1744863052534,-500.0,0.00052054,120]
[358236749,1744863052543,-1120.48,0.00052054,120]
[358236750,1744863052552,-1241.25,0.00052054,120]
[358236751,1744863052561,-500.0,0.00052054,120]
[358236752,1744863052571,-500.0,0.00052054,120]
[358236753,1744863052580,-663.31,0.00052054,30]
[358236754,1744863052589,-500.0,0.00052054,120]
[358236755,1744863052598,-847.21,0.00052054,120]
[358236756,1744863052607,-500.0,0.00052054,120]
[358236757,1744863052616,-524.65,0.00052054,120]
[358236758,1744863052625,-500.0,0.00052054,120]
[358236759,1744863052634,-500.0,0.00052054,120]
[358236760,1744863052643,-368.83087036,0.00052054,120]
[358236761,1744863052652,-594.91,0.00052054,120]
[358236762,1744863052662,-500.0,0.00052054,120]
[358236763,1744863052671,-151.0,0.00052054,120]
[358236764,1744863052680,-500.0,0.00052054,120]
[358236765,1744863052690,-151.0,0.00052054,120]
[358236766,1744863052700,-151.0,0.00052054,120]
[358236767,1744863052710,-151.0,0.00052054,120]
[358236768,1744863052720,-500.0,0.00052054,120]
[358236769,1744863052730,-500.0,0.00052054,120]
[358236770,1744863052740,-500.0,0.00052054,120]
[358236771,1744863052750,-1152.66,0.00052054,120]
[358236772,1744863052759,-500.0,0.00052054,120]
[358236773,1744863052769,-151.0,0.00052054,120]
[358236774,1744863052779,-562.06287762,0.00052054,120]
[358236775,1744863052789,-151.0,0.00052054,120]
[358236776,1744863052798,-1054.65,0.00052054,120]
[358236777,1744863052808,-151.0,0.00052054,120]
[358236778,1744863052818,-1195.46,0.00052054,120]
[358236779,1744863052827,-151.0,0.00052054,120]
[358236780,1744863052837,-500.0,0.00052054,120]
[358236781,1744863052847,-411.17230505,0.00052054,120]
[358236782,1744863052857,-500.0,0.00052054,120]
[358236783,1744863052867,-602.4,0.00052054,120]
[358236784,1744863052877,-1934.63,0.00052054,120]
[358236785,1744863052887,-500.0,0.00052054,120]
[358236786,1744863052896,-500.0,0.00052054,120]
[358236787,1744863052906,-1691.9,0.00052054,120]
[358236788,1744863052916,-500.0,0.00052054,120]
[358236789,1744863052926,-500.0,0.00052054,120]
[358236790,1744863052936,-500.0,0.00052054,120]
[358236791,1744863052946,-615.19,0.00052054,120]
[358236792,1744863052956,-569.75,0.00052054,120]
[358236793,1744863052967,-500.0,0.00052054,120]
[358236794,1744863052979,-151.0,0.00052054,120]
[358236795,1744863052989,-542.16418912,0.00052054,120]
[358236796,1744863053000,-151.0,0.00052054,120]
[358236797,1744863053011,-151.0,0.00052054,120]
[358236798,1744863053022,-151.0,0.00052054,120]
[358236799,1744863053032,-500.0,0.00052054,120]
[358236800,1744863053042,-500.0,0.00052054,120]
[358236801,1744863053053,-500.0,0.00052054,120]
[358236802,1744863053063,-919.28,0.00052054,120]
[358236803,1744863053074,-512.13505422,0.00052054,120]
[358236804,1744863053083,-1753.84,0.00052054,120]
[358236805,1744863053093,-500.0,0.00052054,120]
[358236806,1744863053103,-500.0,0.00052054,120]
[358236807,1744863053113,-624.2,0.00052054,120]
[358236808,1744863053123,-151.0,0.00052054,120]
[358236809,1744863053133,-513.59993056,0.00052054,120]
[358236810,1744863053143,-151.0,0.00052054,120]
[358236811,1744863053152,-151.0,0.00052054,120]
[358236812,1744863053161,-151.0,0.00052054,120]
[358236813,1744863053171,-500.0,0.00052054,120]
[358236814,1744863053182,-500.0,0.00052054,120]
[358236815,1744863053193,-1463.23,0.00052054,120]
[358236816,1744863053203,-500.0,0.00052054,120]
[358236817,1744863053213,-289.12663344,0.00052054,120]
[358236818,1744863053223,-500.0,0.00052054,120]
[358236819,1744863053234,-500.0,0.00052054,120]
[358236820,1744863053244,-500.0,0.00052054,120]
[358236821,1744863053254,-767.67,0.00052054,120]
[358236822,1744863053264,-500.0,0.00052054,120]
[358236823,1744863053274,-500.0,0.00052054,120]
[358236824,1744863053285,-461.029798,0.00052054,120]
[358236825,1744863053295,-1736.94,0.00052054,120]
[358236826,1744863053304,-461.029798,0.00052054,120]
[358236827,1744863053316,-461.029798,0.00052054,120]
[358236828,1744863053326,-500.0,0.00052054,120]
[358236829,1744863053337,-153.294474,0.00052054,120]
[358236830,1744863053347,-500.0,0.00052054,120]
[358236831,1744863053358,-461.029798,0.00052054,120]
[358236832,1744863053369,-461.029798,0.00052054,120]
[358236833,1744863053379,-461.029798,0.00052054,120]
[358236834,1744863053389,-289.372456,0.00052054,120]
[358236835,1744863053399,-955.75,0.00052054,120]
[358236836,1744863053410,-151.0,0.00052054,120]
[358236837,1744863053420,-151.0,0.00052054,120]
[358236838,1744863053431,-151.0,0.00052054,120]
[358236839,1744863053441,-959.21,0.00052054,120]
[358236840,1744863053451,-151.0,0.00052054,120]
[358236841,1744863053461,-2753.67,0.00052054,120]
[358236842,1744863053471,-500.0,0.00052054,120]
[358236843,1744863053481,-654.61,0.00052054,120]
[358236844,1744863053491,-164.622782,0.00052054,120]
[358236845,1744863053502,-500.0,0.00052054,120]
[358236846,1744863053512,-711.47,0.00052054,2]
[358236847,1744863053522,-1394.87,0.00052054,120]
[358236848,1744863053532,-1465.6,0.00052054,120]
[358236849,1744863053542,-1465.6,0.00052054,120]
[358236850,1744863053552,-500.0,0.00052054,120]
[358236851,1744863053564,-814.35,0.00052054,120]
[358236852,1744863053574,-500.0,0.00052054,120]
[358236853,1744863053584,-500.0,0.00052054,120]
[358236854,1744863053595,-598.31775241,0.00052054,120]
[358236855,1744863053605,-540.69715187,0.00052054,120]
[358236856,1744863053615,-166.253305,0.00052054,120]
[358236857,1744863053625,-717.86,0.00052054,120]
[358236858,1744863053635,-1737.0,0.00052054,120]
[358236859,1744863053645,-500.0,0.00052054,120]
[358236860,1744863053654,-1207.08,0.00052054,120]
[358236861,1744863053665,-1238.19,0.00052054,120]
[358236862,1744863053675,-2528.61,0.00052054,120]
[358236863,1744863053684,-505.8662273,0.00052054,120]
[358236864,1744863053695,-203.588424,0.00052054,120]
[358236865,1744863053705,-203.588424,0.00052054,120]
[358236866,1744863053715,-203.588424,0.00052054,120]
[358236867,1744863053725,-203.588424,0.00052054,120]
[358236868,1744863053735,-500.0,0.00052054,120]
[358236869,1744863053746,-203.588424,0.00052054,120]
[358236870,1744863053756,-203.588424,0.00052054,120]
[358236871,1744863053766,-203.588424,0.00052054,120]
[358236872,1744863053776,-1853.2,0.00052054,120]
[358236873,1744863053785,-203.588424,0.00052054,120]
[358236874,1744863053796,-885.43,0.00052054,120]
[358236875,1744863053807,-500.0,0.00052054,120]
[358236876,1744863053816,-1534.04,0.00052054,120]
[358236877,1744863053826,-430.967672,0.00052054,120]
[358236878,1744863053835,-430.967672,0.00052054,120]
[358236879,1744863053845,-430.967672,0.00052054,120]
[358236880,1744863053855,-500.0,0.00052054,120]
[358236881,1744863053865,-430.967672,0.00052054,120]
[358236882,1744863053875,-1585.26,0.00052054,120]
[358236883,1744863053885,-500.0,0.00052054,120]
[358236884,1744863053895,-430.967672,0.00052054,120]
[358236885,1744863053905,-430.967672,0.00052054,120]
[358236886,1744863053916,-430.967672,0.00052054,120]
[358236887,1744863053926,-653.91,0.00052054,120]
[358236888,1744863053936,-430.967672,0.00052054,120]
[358236889,1744863053946,-500.0,0.00052054,120]
[358236890,1744863053956,-500.0,0.00052054,120]
[358236891,1744863053966,-500.0,0.00052054,120]
[358236892,1744863053979,-500.0,0.00052054,120]
[358236893,1744863053990,-500.0,0.00052054,120]
[358236894,1744863054000,-500.0,0.00052054,120]
[358236895,1744863054011,-1039.72,0.00052054,120]
[358236896,1744863054020,-500.0,0.00052054,120]
[358236897,1744863054031,-1520.94,0.00052054,120]
[358236898,1744863054042,-500.0,0.00052054,120]
[358236899,1744863054052,-878.64,0.00052054,8]
[358236900,1744863054063,-500.0,0.00052054,120]
[358236901,1744863054074,-151.868377,0.00052054,120]
[358236902,1744863054084,-500.0,0.00052054,120]
[358236903,1744863054095,-500.0,0.00052054,120]
[358236904,1744863054104,-500.0,0.00052054,120]
[358236905,1744863054114,-500.0,0.00052054,120]
[358236906,1744863054125,-310.758442,0.00052054,120]
[358236907,1744863054135,-310.758442,0.00052054,120]
[358236908,1744863054146,-500.0,0.00052054,120]
[358236909,1744863054155,-310.758442,0.00052054,120]
[358236910,1744863054165,-310.758442,0.00052054,120]
[358236911,1744863054175,-3101.63,0.00052054,120]
[358236912,1744863054186,-500.0,0.00052054,120]
[358236913,1744863054196,-500.0,0.00052054,120]
[358236914,1744863054206,-310.758442,0.00052054,120]
[358236915,1744863054216,-310.758442,0.00052054,120]
[358236916,1744863054226,-154.151272,0.00052054,120]
[358236917,1744863054236,-500.0,0.00052054,120]
[358236918,1744863054246,-500.0,0.00052054,120]
[358236919,1744863054256,-310.758442,0.00052054,120]
[358236920,1744863054267,-310.758442,0.00052054,120]
[358236921,1744863054277,-500.0,0.00052054,120]
[358236922,1744863054287,-944.71,0.00052054,120]
[358236923,1744863054296,-500.0,0.00052054,120]
[358236924,1744863054306,-500.0,0.00052054,120]
[358236925,1744863054316,-906.63,0.00052054,120]
[358236926,1744863054327,-500.0,0.00052054,120]
[358236927,1744863054337,-817.95,0.00052054,120]
[358236928,1744863054347,-500.0,0.00052054,120]
[358236929,1744863054357,-152.241112,0.00052054,120]
[358236930,1744863054367,-420.277791,0.00052054,120]
[358236931,1744863054378,-773.02,0.00052054,120]
[358236932,1744863054388,-500.0,0.00052054,120]
[358236933,1744863054398,-420.74824051,0.00052054,120]
[358236934,1744863054409,-971.06,0.00052054,118]
[358236935,1744863054419,-500.0,0.00052054,120]
[358236936,1744863054429,-500.0,0.00052054,120]
[358236937,1744863054439,-331.746573,0.00052054,120]
[358236938,1744863054449,-331.746573,0.00052054,120]
[358236939,1744863054459,-331.746573,0.00052054,120]
[358236940,1744863054469,-331.746573,0.00052054,120]
[358236941,1744863054480,-814.36,0.00052054,120]
[358236942,1744863054490,-331.746573,0.00052054,120]
[358236943,1744863054500,-412.376175,0.00052054,120]
[358236944,1744863054511,-609.9,0.00052054,120]
[358236945,1744863054521,-331.746573,0.00052054,120]
[358236946,1744863054531,-412.376175,0.00052054,120]
[358236947,1744863054542,-412.376175,0.00052054,120]
[358236948,1744863054552,-500.0,0.00052054,120]
[358236949,1744863054562,-500.0,0.00052054,120]
[358236950,1744863054572,-500.0,0.00052054,120]
[358236951,1744863054582,-412.376175,0.00052054,120]
[358236952,1744863054592,-331.746573,0.00052054,120]
[358236953,1744863054602,-331.746573,0.00052054,120]
[358236954,1744863054612,-1361.47,0.00052054,120]
[358236955,1744863054621,-412.376175,0.00052054,120]
[358236956,1744863054630,-412.376175,0.00052054,120]
[358236957,1744863054639,-151.0,0.00052054,120]
[358236958,1744863054647,-412.376175,0.00052054,120]
[358236959,1744863054656,-412.376175,0.00052054,120]
[358236960,1744863054666,-500.0,0.00052054,120]
[358236961,1744863054675,-500.0,0.00052054,120]
[358236962,1744863054684,-1693.88,0.00052054,120]
[358236963,1744863054697,-913.76,0.00052054,120]
[358236964,1744863054707,-500.0,0.00052054,120]
[358236965,1744863054717,-500.0,0.00052054,120]
[358236966,1744863054728,-500.0,0.00052054,120]
[358236967,1744863054737,-500.0,0.00052054,120]
[358236968,1744863054749,-1757.19,0.00052054,120]
[358236969,1744863054759,-547.18,0.00052054,120]
[358236970,1744863054769,-500.0,0.00052054,120]
[358236971,1744863054780,-3570.31,0.00052054,120]
[358236972,1744863054790,-1035.4,0.00052054,120]
[358236973,1744863054801,-2000.0,0.00052054,120]
[358236974,1744863054811,-568.21,0.00052054,120]
[358236975,1744863054821,-500.0,0.00052054,120]
[358236976,1744863054831,-500.0,0.00052054,120]
[358236977,1744863054841,-500.0,0.00052054,120]
[358236978,1744863054851,-500.0,0.00052054,120]
[358236979,1744863054861,-500.0,0.00052054,120]
[358236980,1744863054871,-3029.26,0.00052054,120]
[358236981,1744863054881,-949.35,0.00052054,120]
[358236982,1744863054891,-500.0,0.00052054,120]
[358236983,1744863054901,-647.48,0.00052054,120]
[358236984,1744863054911,-500.0,0.00052054,120]
[358236985,1744863054921,-859.81,0.00052054,120]
[358236986,1744863054932,-500.0,0.00052054,120]
[358236987,1744863054942,-500.0,0.00052054,120]
[358236988,1744863054954,-865.69,0.00052054,120]
[358236989,1744863055214,-1476.65,0.00052054,120]
[358236990,1744863055224,-500.0,0.00052054,120]
[358236991,1744863055234,-2539.82,0.00052054,120]
[358236992,1744863055244,-500.0,0.00052054,120]
[358236993,1744863055254,-500.0,0.00052054,120]
[358236994,1744863055264,-500.0,0.00052054,120]
[358236995,1744863055273,-500.0,0.00052054,120]
[358236996,1744863055283,-500.0,0.00052054,120]
[358236997,1744863055293,-786.27,0.00052054,120]
[358236998,1744863055303,-500.0,0.00052054,120]
[358236999,1744863055312,-589.95,0.00052054,120]
[358237000,1744863055322,-744.84,0.00052054,120]
[358237001,1744863055332,-836.03,0.00052054,120]
[358237002,1744863055341,-500.0,0.00052054,120]
[358237003,1744863055351,-457.35704287,0.00052054,120]
[358237004,1744863055361,-267.672956,0.00052054,120]
[358237005,1744863055371,-584.17,0.00052054,120]
[358237006,1744863055381,-500.0,0.00052054,120]
[358237007,1744863055391,-657.48,0.00052054,120]
[358237008,1744863055401,-987.87,0.00052054,120]
[358237009,1744863055411,-500.0,0.00052054,120]
[358237010,1744863055421,-713.7,0.00052054,120]
[358237011,1744863055431,-500.0,0.00052054,120]
[358237012,1744863055441,-500.0,0.00052054,120]
[358237013,1744863055451,-569.96,0.00052054,120]
[358237014,1744863055460,-1254.23,0.00052054,120]
[358237015,1744863055470,-500.0,0.00052054,120]
[358237016,1744863055480,-921.55,0.00052054,120]
[358237017,1744863055490,-990.52,0.00052054,120]
[358237018,1744863055500,-242.836489,0.00052054,120]
[358237019,1744863055509,-504.86,0.00052054,120]
[358237020,1744863055519,-242.836489,0.00052054,120]
[358237021,1744863055529,-242.836489,0.00052054,120]
[358237022,1744863055539,-556.78,0.00052054,120]
[358237023,1744863055549,-242.836489,0.00052054,120]
[358237024,1744863055559,-500.0,0.00052054,120]
[358237025,1744863055569,-536.95,0.00052054,120]
[358237026,1744863055578,-242.836489,0.00052054,120]
[358237027,1744863055588,-242.836489,0.00052054,120]
[358237028,1744863055598,-242.836489,0.00052054,120]
[358237029,1744863055607,-6737.32,0.00052054,120]
[358237030,1744863055617,-242.836489,0.00052054,120]
[358237031,1744863055627,-500.0,0.00052054,120]
[358237032,1744863055636,-500.0,0.00052054,120]
[358237033,1744863055646,-500.82,0.00052054,120]
[358237034,1744863055655,-1505.02,0.00052054,120]
[358237035,1744863055665,-442.17917256,0.00052054,120]
[358237036,1744863055674,-500.0,0.00052054,120]
[358237037,1744863055683,-1079.5,0.00052054,120]
[358237038,1744863055694,-646.86,0.00052054,120]
[358237039,1744863055703,-901.34,0.00052054,120]
[358237040,1744863055712,-2623.8,0.00052054,120]
[358237041,1744863055722,-500.0,0.00052054,120]
[358237042,1744863055732,-500.0,0.00052054,120]
[358237043,1744863055741,-749.4,0.00052054,120]
[358237044,1744863055751,-500.0,0.00052054,120]
[358237045,1744863055760,-500.0,0.00052054,120]
[358237046,1744863055770,-902.78,0.00052054,120]
[358237047,1744863055779,-1485.42,0.00052054,120]
[358237048,1744863055788,-500.0,0.00052054,120]
[358237049,1744863055797,-1061.94,0.00052054,120]
[358237050,1744863055807,-540.1,0.00052054,120]
[358237051,1744863055816,-500.0,0.00052054,120]
[358237052,1744863055825,-2562.0,0.00052054,120]
[358237053,1744863055835,-1196.92,0.00052054,120]
[358237054,1744863055845,-708.51,0.00052054,120]
[358237055,1744863055854,-578.92,0.00052054,120]
[358237056,1744863055864,-2716.69,0.00052054,120]
[358237057,1744863055873,-1819.09,0.00052054,120]
[358237058,1744863055883,-151.0,0.00052054,120]
[358237059,1744863055893,-151.0,0.00052054,120]
[358237060,1744863055902,-151.0,0.00052054,120]
[358237061,1744863055911,-500.0,0.00052054,120]
[358237062,1744863055921,-151.0,0.00052054,120]
[358237063,1744863055931,-151.0,0.00052054,120]
[358237064,1744863055940,-151.0,0.00052054,120]
[358237065,1744863055950,-151.0,0.00052054,120]
[358237066,1744863055959,-205.482242,0.00052054,120]
[358237067,1744863055968,-500.0,0.00052054,120]
[358237068,1744863055980,-723.52,0.00052054,120]
[358237069,1744863055989,-320.68267179,0.00052054,120]
[358237070,1744863055999,-2767.7,0.00052054,120]
[358237071,1744863056008,-720.14,0.00052054,120]
[358237072,1744863056018,-500.0,0.00052054,2]
[358237073,1744863056028,-857.14,0.00052054,120]
[358237074,1744863056037,-500.0,0.00052054,120]
[358237075,1744863056046,-402.0,0.00052055,120]
[358237076,1744863056058,-151.0,0.00052055,120]
[358237077,1744863056067,-166.497512,0.00052055,120]
[358237078,1744863056077,-166.497512,0.00052055,120]
[358237079,1744863056086,-2077.814045,0.00052055,120]
[358237080,1744863056095,-155.199696,0.00052055,120]
[358237081,1744863056105,-209.422012,0.00052055,120]
[358237082,1744863056114,-209.422012,0.00052055,120]
[358237083,1744863056124,-151.0,0.00052055,120]
[358237084,1744863056133,-636.901357,0.00052055,120]
[358237085,1744863056142,-636.901357,0.00052055,120]
[358237086,1744863056152,-150.0,0.00052055,7]
[358237087,1744863056161,-500.0,0.00052055,7]
[358237088,1744863056170,-150.0,0.00052055,7]
[358237089,1744863056180,-500.0,0.00052055,7]
[358237090,1744863056189,-500.0,0.00052055,7]
[358237091,1744863056198,-500.0,0.00052055,7]
[358237092,1744863056208,-199.38141135,0.00052055,7]
[358237093,1744863056218,-194.75129471,0.00052055,7]
[358237094,1744863056227,-150.0,0.00052055,7]
[358237095,1744863056237,-500.0,0.00052055,7]
[358237096,1744863056246,-500.0,0.00052055,7]
[358237097,1744863056256,-500.0,0.00052055,2]
[358237098,1744863056266,-150.059592,0.00052055,2]
[358237099,1744863056276,-500.0,0.00052055,2]
[358237100,1744863056285,-150.0,0.00052055,2]
[358237101,1744863056296,-500.0,0.00052055,2]